bitfinex/quotes_BTCUSD_20250727
["timestamp","ask_amount","ask_price","bid_price","bid_amount"]
[1753641367632,0.69695045,119210.0,119200.0,0.42480947]
[1753641367838,0.68856225,119210.0,119200.0,0.42480947]
[1753641368052,0.69695045,119210.0,119200.0,0.42480947]
[1753641368265,0.70533879,119210.0,119200.0,0.40803188]
[1753641368510,0.69695045,119210.0,119200.0,0.41642064]
[1753641369140,0.69995045,119210.0,119200.0,0.41642064]
[1753641369360,0.70833879,119210.0,119200.0,0.39964298]
[1753641369585,0.71672734,119210.0,119200.0,0.39964305]
[1753641369832,0.8844985,119210.0,119200.0,0.39964305]
[1753641370050,0.8844985,119210.0,119200.0,0.43275723]
[1753641370497,0.70833879,119210.0,119200.0,0.44114613]
[1753641370719,0.69995045,119210.0,119200.0,0.44114577]
[1753641370931,0.70833879,119210.0,119200.0,0.44114577]
[1753641371148,0.70833879,119210.0,119200.0,0.43275694]
[1753641371305,0.70833879,119210.0,119200.0,0.44114577]
[1753641371513,0.70833879,119210.0,119200.0,0.43275702]
[1753641371718,0.71672727,119210.0,119200.0,0.42436804]
[1753641372888,0.71672727,119210.0,119200.0,0.43275702]
[1753641373113,0.70833879,119210.0,119200.0,0.44114592]
[1753641373329,0.71672727,119210.0,119200.0,0.43275702]
[1753641373788,0.71672727,119210.0,119200.0,0.41597899]
[1753641373964,0.71672727,119210.0,119200.0,0.41597906]
[1753641373965,0.69995045,119210.0,119200.0,0.41597906]
[1753641374208,0.68317419,119210.0,119200.0,0.43275701]
[1753641374365,0.82204211,119210.0,119200.0,0.30212577]
[1753641374981,0.81365419,119210.0,119200.0,0.30212577]
[1753641375193,0.81365419,119210.0,119200.0,0.29373701]
[1753641375567,0.82204211,119210.0,119200.0,0.30212577]
[1753641375823,0.81365419,119210.0,119200.0,0.30212577]
[1753641376042,0.82204211,119210.0,119200.0,0.30212577]
[1753641376500,0.81365419,119210.0,119200.0,0.30212577]
[1753641376945,0.46425,119210.0,119200.0,0.43212577]
[1753641377163,0.82204218,119210.0,119200.0,0.30212577]
[1753641377377,0.82204211,119210.0,119200.0,0.30212577]
[1753641378378,0.82204211,119210.0,119200.0,0.28534811]
[1753641378580,0.84720664,119210.0,119200.0,0.28534818]
[1753641378786,0.84720664,119210.0,119200.0,0.27695906]
[1753641379172,0.84720664,119210.0,119200.0,0.28534811]
[1753641379173,0.8388183,119210.0,119200.0,0.28534811]
[1753641379373,0.84720671,119210.0,119200.0,0.27695906]
[1753641379874,0.84720671,119210.0,119200.0,0.28534818]
[1753641380191,1.01497787,119210.0,119200.0,0.27695906]
[1753641380588,1.02336642,119210.0,119200.0,0.28534818]
[1753641380789,1.02336642,119210.0,119200.0,0.27695906]
[1753641381209,1.0149785,119210.0,119200.0,0.27695906]
[1753641381470,0.99820231,119210.0,119200.0,0.15520513]
[1753641381690,0.37955237,119200.0,119190.0,0.30658841]
[1753641381956,0.73110656,119200.0,119190.0,0.30666944]
[1753641382203,0.78062656,119200.0,119190.0,0.30666944]
[1753641382452,0.78062656,119200.0,119190.0,0.29827948]
[1753641382854,0.78062656,119200.0,119190.0,0.30666944]
[1753641383314,0.8363972,119200.0,119190.0,0.30766944]
[1753641383542,0.78162656,119200.0,119190.0,0.29927948]
[1753641384010,0.78062656,119200.0,119190.0,0.30666944]
[1753641384260,0.92245561,119200.0,119190.0,0.30666944]
[1753641384535,0.91406678,119200.0,119190.0,0.29827948]
[1753641384780,0.90567773,119200.0,119190.0,0.29828034]
[1753641384984,0.90567773,119200.0,119190.0,0.13048103]
[1753641385199,0.89728861,119200.0,119190.0,0.13048103]
[1753641385418,0.89728861,119200.0,119190.0,8.103e-05]
[1753641385636,0.89728861,119200.0,119190.0,0.16788034]
[1753641385855,0.89728861,119200.0,119190.0,8.103e-05]
[1753641386291,0.42778355,119190.0,119180.0,0.58732473]
[1753641386531,0.59539355,119190.0,119180.0,0.70185058]
[1753641386747,0.6121727,119190.0,119180.0,0.7102411]
[1753641387175,0.62056203,119190.0,119180.0,0.69346027]
[1753641387385,0.6121727,119190.0,119180.0,0.70185072]
[1753641387605,0.61469313,119190.0,119180.0,0.37124082]
[1753641387827,0.63860359,119190.0,119180.0,0.37124082]
[1753641388036,0.63860359,119190.0,119180.0,0.37161082]
[1753641388308,0.24751,119190.0,119180.0,0.37161082]
[1753641388515,0.50630419,119190.0,119180.0,0.45657082]
[1753641388922,0.51469359,119190.0,119180.0,0.45657082]
[1753641389157,0.60207359,119190.0,119180.0,0.45657082]
[1753641389362,0.60207359,119190.0,119180.0,0.37161082]
[1753641389573,0.59691419,119190.0,119180.0,0.39678018]
[1753641390614,0.50630419,119190.0,119180.0,0.48174018]
[1753641391022,0.59368419,119190.0,119180.0,0.48174018]
[1753641391239,0.59368419,119190.0,119180.0,0.39678018]
[1753641392144,1.04278419,119190.0,119180.0,0.39678018]
[1753641392567,1.04601419,119190.0,119180.0,0.39678018]
[1753641393158,1.0949932,119190.0,119180.0,0.39678025]
[1753641393371,1.10338288,119190.0,119180.0,0.39541025]
[1753641393580,1.0949932,119190.0,119180.0,0.40380042]
[1753641394088,1.20857419,119190.0,119180.0,0.40380042]
[1753641394295,1.20857419,119190.0,119180.0,0.40517042]
[1753641394725,1.21696359,119190.0,119180.0,0.40517042]
[1753641395141,1.22535313,119190.0,119180.0,0.40517042]
[1753641395652,1.23374274,119190.0,119180.0,0.40380042]
[1753641395990,1.10338274,119190.0,119180.0,0.40380042]
[1753641396197,1.23374274,119190.0,119180.0,0.40380042]
[1753641397974,1.24213249,119190.0,119180.0,0.39541025]
[1753641398180,1.23374274,119190.0,119180.0,0.40380042]
[1753641398390,1.23374274,119190.0,119180.0,0.39541032]
[1753641398598,1.23374274,119190.0,119180.0,0.40380049]
[1753641398804,1.23374274,119190.0,119180.0,0.39541032]
[1753641399065,1.25052224,119190.0,119180.0,0.39541032]
[1753641399298,1.2505228,119190.0,119180.0,0.38702001]
[1753641399512,1.25052273,119190.0,119180.0,0.38702001]
[1753641399710,1.23374302,119190.0,119180.0,0.39541032]
[1753641399885,1.24213284,119190.0,119180.0,0.39541032]
[1753641400916,1.22535334,119190.0,119180.0,0.40380049]
[1753641401135,1.22535299,119190.0,119180.0,0.40380049]
[1753641401350,1.22535292,119190.0,119180.0,0.40380049]
[1753641401753,1.22531292,119190.0,119180.0,0.40380049]
[1753641402089,1.09499292,119190.0,119180.0,0.40380049]
[1753641402286,1.21692352,119190.0,119180.0,0.40380049]
[1753641402739,1.22531299,119190.0,119180.0,0.40517049]
[1753641402951,1.21708395,119190.0,119180.0,0.40517049]
[1753641403134,1.20100076,119190.0,119180.0,0.40517049]
[1753641403352,1.20939023,119190.0,119180.0,0.40517049]
[1753641404836,1.22616945,119190.0,119180.0,0.39541032]
[1753641405055,1.23455927,119190.0,119180.0,0.40380056]
[1753641405498,1.22616945,119190.0,119180.0,0.45412056]
[1753641405731,1.21777977,119190.0,119180.0,0.41219073]
[1753641405949,1.21777977,119190.0,119180.0,0.40380056]
[1753641406187,1.2345592,119190.0,119180.0,0.32426615]
[1753641406404,1.23455976,119190.0,119180.0,0.34104691]
[1753641406625,1.23455962,119190.0,119180.0,0.34104691]
[1753641406851,1.23455962,119190.0,119180.0,0.3326566]
[1753641407594,1.22617015,119190.0,119180.0,0.3326566]
[1753641407805,1.22617015,119190.0,119180.0,0.34104691]
[1753641408023,1.22617015,119190.0,119180.0,0.3326566]
[1753641408246,1.23456011,119190.0,119180.0,0.3326566]
[1753641408456,1.39396988,119190.0,119180.0,0.32426622]
[1753641408856,1.39396988,119190.0,119180.0,0.3326566]
[1753641409297,1.39396988,119190.0,119180.0,0.32426622]
[1753641410099,0.76029072,119190.0,119180.0,0.34104677]
[1753641410308,0.76029044,119190.0,119180.0,0.34104677]
[1753641410721,0.76029037,119190.0,119180.0,0.34104677]
[1753641411155,0.75190083,119190.0,119180.0,0.34104677]
[1753641412004,0.76029037,119190.0,119180.0,0.34104677]
[1753641412233,1.10216155,119190.0,119180.0,0.32426622]
[1753641412453,0.76868012,119190.0,119180.0,0.34104677]
[1753641413315,0.76868012,119190.0,119180.0,0.34104684]
[1753641413538,0.77707001,119190.0,119180.0,0.34104684]
[1753641414007,0.77707001,119190.0,119180.0,0.3326566]
[1753641414266,0.77707001,119190.0,119180.0,0.30748724]
[1753641414554,1.26157181,119190.0,119180.0,0.19786194]
[1753641414978,0.92809038,119190.0,119180.0,0.2062526]
[1753641415192,0.92809038,119190.0,119180.0,0.19786194]
[1753641415618,1.26157181,119190.0,119180.0,0.19786194]
[1753641415857,1.25318206,119190.0,119180.0,0.19786194]
[1753641416070,1.25318206,119190.0,119180.0,0.03004855]
[1753641416501,1.25318206,119190.0,119180.0,0.19786194]
[1753641416715,1.25318206,119190.0,119180.0,0.2062526]
[1753641417262,1.25318206,119190.0,119180.0,0.19786194]
[1753641417472,0.91970063,119190.0,119180.0,0.19786194]
[1753641417684,0.91970063,119190.0,119180.0,0.2062526]
[1753641417892,0.91970063,119190.0,119180.0,0.19786194]
[1753641418072,1.25318206,119190.0,119180.0,0.03004855]
[1753641418922,1.25318206,119190.0,119180.0,0.19786194]
[1753641420461,1.25318206,119190.0,119180.0,0.03004855]
[1753641420697,1.25318206,119190.0,119180.0,0.19786194]
[1753641421140,1.25318206,119190.0,119180.0,0.03004855]
[1753641421844,1.25318206,119190.0,119180.0,4.855e-05]
[1753641423228,1.25318206,119190.0,119180.0,0.00104855]
[1753641424584,1.70128206,119190.0,119180.0,0.00104855]
[1753641425010,1.70128206,119190.0,119180.0,0.00404855]
[1753641427132,0.46932291,119180.0,119170.0,0.31010795]
[1753641427386,0.00245145,119180.0,119170.0,1.52995542]
[1753641427641,0.33593288,119180.0,119170.0,1.53132542]
[1753641427878,0.42593288,119180.0,119170.0,1.74397542]
[1753641428112,0.09245145,119180.0,119170.0,1.74483542]
[1753641428348,0.42593288,119180.0,119170.0,1.74483542]
[1753641428595,0.09245145,119180.0,119170.0,3.46260504]
[1753641428840,0.09245145,119180.0,119170.0,3.36133604]
[1753641429578,0.09245145,119180.0,119170.0,5.08425504]
[1753641429819,0.09245145,119180.0,119170.0,4.94737504]
[1753641430052,0.09245145,119180.0,119170.0,1.17648504]
[1753641430295,0.09245145,119180.0,119170.0,3.38410604]
[1753641430772,0.09245145,119180.0,119170.0,3.99433904]
[1753641430995,0.09245145,119180.0,119170.0,3.15384204]
[1753641431462,0.09245145,119180.0,119170.0,2.46289204]
[1753641431690,0.44382485,119180.0,119170.0,2.67749504]
[1753641431915,0.44182485,119180.0,119170.0,2.67749504]
[1753641432136,0.44182485,119180.0,119170.0,1.12616504]
[1753641432386,0.09345145,119180.0,119170.0,3.06444004]
[1753641432609,0.09345145,119180.0,119170.0,4.83518604]
[1753641433555,0.36295145,119180.0,119170.0,4.59691104]
[1753641433778,0.36295145,119180.0,119170.0,4.26275004]
[1753641434701,0.36295145,119180.0,119170.0,4.08437804]
[1753641434918,0.36295145,119180.0,119170.0,3.99155604]
[1753641435803,0.36295145,119180.0,119170.0,4.38447904]
[1753641435984,0.36295145,119180.0,119170.0,4.20190704]
[1753641436662,0.36295145,119180.0,119170.0,4.38868504]
[1753641436882,0.36295145,119180.0,119170.0,2.58614104]
[1753641436883,0.71232485,119180.0,119170.0,2.58614104]
[1753641437101,0.71232485,119180.0,119170.0,2.61133404]
[1753641437776,0.71232485,119180.0,119170.0,3.19484604]
[1753641438702,0.71232485,119180.0,119170.0,1.15135804]
[1753641438917,0.71232485,119180.0,119170.0,2.39330704]
[1753641439366,0.71340485,119180.0,119170.0,2.39330704]
[1753641439830,0.71340485,119180.0,119170.0,3.33496404]
[1753641440039,0.71340485,119180.0,119170.0,3.29494104]
[1753641440462,0.71340485,119180.0,119170.0,3.34526104]
[1753641440898,0.71340485,119180.0,119170.0,1.20167804]
[1753641441338,0.71340485,119180.0,119170.0,3.49026604]
[1753641441556,0.71340485,119180.0,119170.0,3.39181304]
[1753641441772,0.71340485,119180.0,119170.0,3.41851304]
[1753641441998,0.71340485,119180.0,119170.0,3.41765304]
[1753641443008,0.71340485,119180.0,119170.0,3.08086704]
[1753641443776,0.71340485,119180.0,119170.0,3.15323004]
[1753641443985,0.71340485,119180.0,119170.0,3.42493004]
[1753641445056,0.71340485,119180.0,119170.0,3.50384804]
[1753641445290,0.71340485,119180.0,119170.0,3.43749704]
[1753641445469,0.71340485,119180.0,119170.0,3.30042604]
[1753641445470,0.36403145,119180.0,119170.0,3.30042604]
[1753641445925,0.36403145,119180.0,119170.0,3.86066504]
[1753641446334,0.36403145,119180.0,119170.0,3.50968404]
[1753641446974,0.36403145,119180.0,119170.0,3.59672204]
[1753641447189,0.36403145,119180.0,119170.0,3.54284504]
[1753641447830,0.36403145,119180.0,119170.0,3.70207204]
[1753641448913,0.36403145,119180.0,119170.0,3.90450604]
[1753641450033,0.36403145,119180.0,119170.0,2.65654604]
[1753641450807,0.36403145,119180.0,119170.0,1.17161804]
[1753641451020,0.36403145,119180.0,119170.0,3.09917004]
[1753641451862,0.44604145,119180.0,119170.0,2.23520304]
[1753641452046,0.44604145,119180.0,119170.0,2.23748704]
[1753641452300,0.79541485,119180.0,119170.0,2.17838904]
[1753641453198,0.79541485,119180.0,119170.0,2.60679204]
[1753641454050,0.79541485,119180.0,119170.0,2.88760504]
[1753641454721,0.82758485,119180.0,119170.0,2.17573404]
[1753641455145,0.82758485,119180.0,119170.0,2.18965804]
[1753641455539,0.85938485,119180.0,119170.0,1.48402904]
[1753641455975,0.85938485,119180.0,119170.0,1.04661874]
[1753641456241,0.86777488,119180.0,119170.0,0.43275172]
[1753641456444,0.85938485,119180.0,119170.0,0.56295172]
[1753641456656,0.85938485,119180.0,119170.0,1.03499272]
[1753641456885,0.86777488,119180.0,119170.0,1.03499272]
[1753641457091,0.59827488,119180.0,119170.0,1.03499272]
[1753641457302,0.24051145,119180.0,119170.0,1.03499272]
[1753641457545,0.58988485,119180.0,119170.0,1.03499272]
[1753641457756,0.58988485,119180.0,119170.0,1.00434772]
[1753641458585,0.58988485,119180.0,119170.0,0.90295172]
[1753641458786,0.58988485,119180.0,119170.0,1.02469572]
[1753641459210,0.58988485,119180.0,119170.0,0.90295172]
[1753641460604,0.58988485,119180.0,119170.0,1.01419572]
[1753641460810,0.58988485,119180.0,119170.0,0.90295172]
[1753641462750,0.59827495,119180.0,119170.0,0.90295172]
[1753641462960,0.58988485,119180.0,119170.0,0.90295172]
[1753641463426,0.58988485,119180.0,119170.0,0.87775872]
[1753641464897,0.59827495,119180.0,119170.0,0.87775872]
[1753641465506,0.59827495,119180.0,119170.0,8.131e-05]
[1753641465507,1.76126697,119180.0,119170.0,8.131e-05]
[1753641466290,2.01126697,119180.0,119170.0,8.131e-05]
[1753641466744,0.3654187,119170.0,119160.0,0.025198]
[1753641466965,0.3654187,119170.0,119160.0,0.02527955]
[1753641466966,2.09540042,119170.0,119160.0,0.02527955]
[1753641467182,2.38426,119170.0,119160.0,0.02527955]
[1753641468061,2.63426,119170.0,119160.0,8.155e-05]
[1753641468264,2.63426,119170.0,119160.0,0.00308155]
[1753641469335,2.45406,119170.0,119160.0,0.00308155]
[1753641469558,2.6343,119170.0,119160.0,0.00308155]
[1753641469805,1.9027121,119170.0,119160.0,0.00308155]
[1753641470024,1.6527121,119170.0,119160.0,0.00308155]
[1753641472054,1.38871684,119160.0,119150.0,0.20142566]
[1753641472280,1.38871705,119160.0,119150.0,0.19351924]
[1753641472505,1.47779705,119160.0,119150.0,0.19351924]
[1753641473395,1.47779705,119160.0,119150.0,0.18512667]
[1753641473616,2.2009933,119160.0,119150.0,0.00048608]
[1753641474297,2.3312333,119160.0,119150.0,0.00048608]
[1753641474521,2.3312333,119160.0,119150.0,0.00448608]
[1753641476326,2.33112212,119160.0,119150.0,0.00448608]
[1753641476553,2.33112212,119160.0,119150.0,0.17234172]
[1753641476742,2.32273012,119160.0,119150.0,0.00448608]
[1753641477542,1.65732285,119160.0,119150.0,0.00448608]
[1753641477778,0.57636155,119160.0,119150.0,0.00448608]
[1753641477982,1.65732285,119160.0,119150.0,0.00448608]
[1753641478248,1.71309349,119160.0,119150.0,0.00448608]
[1753641480517,0.57636155,119160.0,119150.0,0.00448608]
[1753641480743,1.65732285,119160.0,119150.0,0.00448608]
[1753641481187,1.90732285,119160.0,119150.0,0.00448608]
[1753641481413,1.90732285,119160.0,119150.0,0.00048608]
[1753641481638,1.90732285,119160.0,119150.0,0.00248608]
[1753641481901,1.96309349,119160.0,119150.0,0.00248608]
[1753641482116,1.90732285,119160.0,119150.0,0.00248608]
[1753641488583,0.71292119,119150.0,119120.0,0.02804779]
[1753641488786,0.71556127,119130.0,119120.0,0.02819355]
[1753641488993,0.84776127,119130.0,119120.0,0.00014576]
[1753641489204,0.93101127,119130.0,119120.0,0.02724541]
[1753641489411,0.93101127,119130.0,119120.0,0.00014576]
[1753641489632,1.02101127,119130.0,119120.0,0.00014576]
[1753641490049,1.47011127,119130.0,119120.0,0.00014576]
[1753641490716,1.47011127,119130.0,119120.0,0.17643849]
[1753641490958,1.48689929,119130.0,119120.0,0.1862031]
[1753641491173,1.48689929,119130.0,119120.0,0.18620324]
[1753641491371,1.48689929,119130.0,119120.0,0.20299239]
[1753641491578,1.43689929,119130.0,119120.0,0.20299239]
[1753641491816,1.48689929,119130.0,119120.0,0.20299239]
[1753641492249,1.40993269,119130.0,119120.0,0.23039866]
[1753641492448,1.24204887,119130.0,119120.0,0.28951679]
[1753641493086,0.9960734,119130.0,119120.0,0.28951679]
[1753641493297,0.9634734,119130.0,119120.0,0.37399409]
[1753641493521,1.0134734,119130.0,119120.0,0.50607409]
[1753641493937,1.02186702,119130.0,119120.0,0.50607409]
[1753641494393,1.03026078,119130.0,119120.0,0.50607409]
[1753641495071,1.03865468,119130.0,119120.0,0.50607409]
[1753641495835,1.03026078,119130.0,119120.0,0.50607409]
[1753641496066,0.6141,119130.0,119120.0,0.50607409]
[1753641496286,0.9634734,119130.0,119120.0,0.50607409]
[1753641496726,0.5391,119130.0,119120.0,0.65903409]
[1753641496961,0.9634734,119130.0,119120.0,0.65903409]
[1753641497790,0.8884734,119130.0,119120.0,0.65903409]
[1753641498018,1.1876149,119130.0,119120.0,0.39299579]
[1753641498258,1.3471051,119130.0,119120.0,0.13222576]
[1753641498728,1.4791851,119130.0,119120.0,0.00014576]
[1753641499603,1.1298117,119130.0,119120.0,0.00014576]
[1753641499830,1.4791851,119130.0,119120.0,0.00014576]
[1753641500270,1.47079127,119130.0,119120.0,0.00014576]
[1753641500716,1.47079127,119130.0,119120.0,0.17643856]
[1753641501826,1.47079127,119130.0,119120.0,0.00854065]
[1753641502049,1.47079127,119130.0,119120.0,0.00014576]
[1753641502484,1.47079127,119130.0,119120.0,0.16804367]
[1753641502485,1.47079127,119130.0,119120.0,0.00014576]
[1753641502954,1.47079127,119130.0,119120.0,0.17643856]
[1753641503167,1.47079127,119130.0,119120.0,0.18483338]
[1753641503612,1.47079127,119130.0,119120.0,0.19322813]
[1753641503815,1.47079127,119130.0,119120.0,0.18483338]
[1753641504111,1.47079127,119130.0,119120.0,0.17643856]
[1753641504940,1.30911071,119130.0,119120.0,0.20299239]
[1753641505149,0.91165,119130.0,119120.0,0.27816239]
[1753641505359,1.1454734,119130.0,119120.0,0.27816239]
[1753641505564,0.9634734,119130.0,119120.0,0.27816239]
[1753641505776,0.9634734,119130.0,119120.0,0.39816239]
[1753641505982,0.97186695,119130.0,119120.0,0.27816239]
[1753641506200,0.9634734,119130.0,119120.0,0.33816239]
[1753641506398,0.8884734,119130.0,119120.0,0.42263969]
[1753641506608,0.8884734,119130.0,119120.0,0.45403969]
[1753641506813,0.8884734,119130.0,119120.0,0.48409969]
[1753641507035,0.8884734,119130.0,119120.0,0.82409969]
[1753641507502,0.5391,119130.0,119120.0,0.82409969]
[1753641507717,0.8884734,119130.0,119120.0,0.82409969]
[1753641508825,0.8884734,119130.0,119120.0,1.62413769]
[1753641510002,0.8884734,119130.0,119120.0,2.38749499]
[1753641510208,0.5391,119130.0,119120.0,2.38749499]
[1753641510434,0.09,119130.0,119120.0,2.33714499]
[1753641511053,0.09,119130.0,119120.0,2.67608899]
[1753641512139,0.09,119130.0,119120.0,2.67636999]
[1753641512566,0.09,119130.0,119120.0,2.59189269]
[1753641512985,0.09,119130.0,119120.0,2.83547269]
[1753641513349,0.09,119130.0,119120.0,2.77569269]
[1753641514009,0.09,119130.0,119120.0,2.71801569]
[1753641514210,0.09,119130.0,119120.0,1.83633769]
[1753641514468,0.09,119130.0,119120.0,1.74467869]
[1753641514675,0.72702241,119130.0,119120.0,0.48462306]
[1753641514877,0.85976413,119130.0,119120.0,0.55634306]
[1753641515056,0.85976413,119130.0,119120.0,0.72424097]
[1753641515224,0.85976413,119130.0,119120.0,0.73263579]
[1753641515433,0.9763703,119130.0,119120.0,0.21634306]
[1753641516026,0.9763703,119130.0,119120.0,0.08462306]
[1753641516433,0.9763703,119130.0,119120.0,0.00014576]
[1753641519757,0.90871988,119130.0,119120.0,0.00014576]
[1753641520868,0.90871988,119130.0,119120.0,0.17643856]
[1753641521085,0.90871988,119130.0,119120.0,0.18483338]
[1753641521594,0.90871988,119130.0,119120.0,0.19322813]
[1753641522332,0.91711371,119130.0,119120.0,0.20162253]
[1753641522596,0.74922989,119130.0,119120.0,0.21001693]
[1753641522806,0.68244201,119130.0,119120.0,0.29449423]
[1753641523027,0.83956433,119130.0,119120.0,0.29586423]
[1753641523243,0.5466734,119130.0,119120.0,0.29586423]
[1753641523461,0.5143734,119130.0,119120.0,0.51284423]
[1753641523873,0.5143734,119130.0,119120.0,0.37034423]
[1753641524308,0.5143734,119130.0,119120.0,0.74284423]
[1753641524516,0.5143734,119130.0,119120.0,0.82034423]
[1753641526163,0.4393734,119130.0,119120.0,1.82420223]
[1753641526648,0.09,119130.0,119120.0,1.88640223]
[1753641526902,0.165,119130.0,119120.0,1.85720223]
[1753641527154,0.5143734,119130.0,119120.0,1.85720223]
[1753641527640,0.4393734,119130.0,119120.0,1.85720223]
[1753641527871,0.09,119130.0,119120.0,1.85720223]
[1753641529531,0.09,119130.0,119120.0,1.88640223]
[1753641530793,0.165,119130.0,119120.0,1.82420223]
[1753641531463,0.09,119130.0,119120.0,1.82420223]
[1753641531682,0.165,119130.0,119120.0,1.82420223]
[1753641533491,0.09,119130.0,119120.0,1.82420223]
[1753641534634,0.09,119130.0,119120.0,1.85640223]
[1753641535576,0.09,119130.0,119120.0,1.90675223]
[1753641535994,0.4393734,119130.0,119120.0,1.90675223]
[1753641537371,0.4393734,119130.0,119120.0,1.85640223]
[1753641537836,0.4393734,119130.0,119120.0,1.95528223]
[1753641538062,0.5213234,119130.0,119120.0,1.85674423]
[1753641538510,0.5244934,119130.0,119120.0,1.85674423]
[1753641538724,0.5589334,119130.0,119120.0,1.29804223]
[1753641538966,0.5895334,119130.0,119120.0,0.76549423]
[1753641539212,0.60632064,119130.0,119120.0,0.76549423]
[1753641539443,0.60632057,119130.0,119120.0,0.76549423]
[1753641540956,0.5895334,119130.0,119120.0,0.76549423]
[1753641541175,0.5895334,119130.0,119120.0,1.08940423]
[1753641541643,0.5895334,119130.0,119120.0,0.76545423]
[1753641541644,0.67292702,119130.0,119120.0,0.76545423]
[1753641541858,0.6645334,119130.0,119120.0,0.76545423]
[1753641542071,0.67292695,119130.0,119120.0,0.76545423]
[1753641542307,0.68132071,119130.0,119120.0,0.76545423]
[1753641542519,0.67292695,119130.0,119120.0,0.76545423]
[1753641542736,0.68132064,119130.0,119120.0,0.76545423]
[1753641542975,0.67292695,119130.0,119120.0,0.87545423]
[1753641543203,0.34034121,119130.0,119120.0,0.75705955]
[1753641543421,0.74810859,119130.0,119120.0,0.75705955]
[1753641543892,0.74810851,119130.0,119120.0,0.75705955]
[1753641544115,0.73971454,119130.0,119120.0,0.75705955]
[1753641544824,0.73132071,119130.0,119120.0,0.75705955]
[1753641545031,0.73132064,119130.0,119120.0,0.75705955]
[1753641545244,0.73971447,119130.0,119120.0,0.75705955]
[1753641545496,0.73132064,119130.0,119120.0,0.88705955]
[1753641545935,0.73132064,119130.0,119120.0,0.75705955]
[1753641546150,0.73971447,119130.0,119120.0,0.75705955]
[1753641546963,0.73132064,119130.0,119120.0,0.75705955]
[1753641547170,0.73971447,119130.0,119120.0,0.75705955]
[1753641547442,0.73132064,119130.0,119120.0,0.75705955]
[1753641547673,0.73971447,119130.0,119120.0,0.75705955]
[1753641548175,0.7397144,119130.0,119120.0,0.75705955]
[1753641548394,0.73132064,119130.0,119120.0,0.75705955]
[1753641549560,0.73971447,119130.0,119120.0,0.75705955]
[1753641550880,0.73132064,119130.0,119120.0,0.75705955]
[1753641551551,0.73132064,119130.0,119120.0,0.87705955]
[1753641551971,0.73971447,119130.0,119120.0,0.75705955]
[1753641552229,0.74810844,119130.0,119120.0,0.75705955]
[1753641552636,0.73971447,119130.0,119120.0,0.75705955]
[1753641552846,0.74810844,119130.0,119120.0,0.75705955]
[1753641553050,0.73971447,119130.0,119120.0,0.75705955]
[1753641554137,0.73971447,119130.0,119120.0,0.75685955]
[1753641554589,0.72292695,119130.0,119120.0,0.75685955]
[1753641555122,0.7145334,119130.0,119120.0,0.75685955]
[1753641555333,0.72292695,119130.0,119120.0,0.75685955]
[1753641555563,0.7145334,119130.0,119120.0,0.75685955]
[1753641556056,0.72292695,119130.0,119120.0,0.75685955]
[1753641556316,0.7145334,119130.0,119120.0,0.75685955]
[1753641556819,0.72292695,119130.0,119120.0,0.75685955]
[1753641557802,0.7145334,119130.0,119120.0,0.75685955]
[1753641558051,0.72292702,119130.0,119120.0,0.75685955]
[1753641558574,0.73132078,119130.0,119120.0,0.75685955]
[1753641558828,0.72292702,119130.0,119120.0,0.75685955]
[1753641559084,0.81575915,119130.0,119120.0,0.62609962]
[1753641559346,0.81575915,119130.0,119120.0,0.27770515]
[1753641559589,0.98364354,119130.0,119120.0,0.27770515]
[1753641559813,0.95846183,119130.0,119120.0,0.13146576]
[1753641560498,0.95846183,119130.0,119120.0,0.30775856]
[1753641560722,0.95846183,119130.0,119120.0,0.32454813]
[1753641561378,1.08150764,119130.0,119120.0,0.30775856]
[1753641562067,1.08990169,119130.0,119120.0,0.32454799]
[1753641562418,1.02225127,119130.0,119120.0,0.32454799]
[1753641562974,1.02225127,119130.0,119120.0,0.19322799]
[1753641563179,1.02225127,119130.0,119120.0,0.32466799]
[1753641565335,1.02225127,119130.0,119120.0,0.33306281]
[1753641565748,1.02225127,119130.0,119120.0,0.34145735]
[1753641566590,1.02225127,119130.0,119120.0,0.33306281]
[1753641567754,0.8711549,119130.0,119120.0,0.34145693]
[1753641568804,0.63566695,119130.0,119120.0,0.49664423]
[1753641568974,0.76690695,119130.0,119120.0,0.49664423]
[1753641569414,0.84143695,119130.0,119120.0,0.42730423]
[1753641569563,0.84450695,119130.0,119120.0,0.42730423]
[1753641570211,0.8361134,119130.0,119120.0,0.42730423]
[1753641570801,0.7061734,119130.0,119120.0,0.42730423]
[1753641571200,0.71456695,119130.0,119120.0,0.42730423]
[1753641572056,0.7061734,119130.0,119120.0,0.42730423]
[1753641572254,0.5966734,119130.0,119120.0,0.49664423]
[1753641572737,0.63776709,119130.0,119120.0,0.49664423]
[1753641572957,0.71229702,119130.0,119120.0,0.42730423]
[1753641573178,0.71536702,119130.0,119120.0,0.42730423]
[1753641573415,0.1973,119130.0,119120.0,0.62664423]
[1753641573635,0.5143734,119130.0,119120.0,0.62664423]
[1753641573854,0.5143734,119130.0,119120.0,1.32255623]
[1753641576182,0.5143734,119130.0,119120.0,1.22941123]
[1753641576396,0.5143734,119130.0,119120.0,1.11081123]
[1753641576617,0.5143734,119130.0,119120.0,0.95246123]
[1753641578347,0.5889034,119130.0,119120.0,0.88312123]
[1753641579675,0.6209034,119130.0,119120.0,0.88312123]
[1753641579907,0.62929702,119130.0,119120.0,0.88312123]
[1753641580130,0.66556702,119130.0,119120.0,0.65370623]
[1753641580560,0.66556702,119130.0,119120.0,0.77370623]
[1753641580994,0.66556702,119130.0,119120.0,0.42730423]
[1753641581195,0.66766702,119130.0,119120.0,0.72214523]
[1753641582228,0.67606078,119130.0,119120.0,0.72214523]
[1753641582449,0.67606078,119130.0,119120.0,0.42730423]
[1753641582679,0.68445461,119130.0,119120.0,0.42730423]
[1753641582899,0.68445461,119130.0,119120.0,0.42593423]
[1753641583482,0.67606078,119130.0,119120.0,0.42593423]
[1753641584755,0.68445468,119130.0,119120.0,0.42593423]
[1753641584997,0.67606078,119130.0,119120.0,0.42593423]
[1753641585220,0.66766702,119130.0,119120.0,0.42593423]
[1753641585398,0.67606078,119130.0,119120.0,0.42593423]
[1753641586257,0.66766702,119130.0,119120.0,0.42593423]
[1753641586450,0.67606071,119130.0,119120.0,0.42593423]
[1753641587738,0.68445447,119130.0,119120.0,0.42593423]
[1753641588388,0.69284837,119130.0,119120.0,0.42593423]
[1753641588677,0.68445447,119130.0,119120.0,0.42593423]
[1753641588878,0.6592734,119130.0,119120.0,0.42593423]
[1753641589400,0.66766695,119130.0,119120.0,0.42593423]
[1753641589634,0.6592734,119130.0,119120.0,0.42593423]
[1753641589811,0.6592734,119130.0,119120.0,0.54593423]
[1753641591050,0.6592734,119130.0,119120.0,0.53593423]
[1753641591255,0.6592734,119130.0,119120.0,0.42593423]
[1753641591462,0.6592734,119130.0,119120.0,0.53593423]
[1753641592839,0.3099,119130.0,119120.0,0.53593423]
[1753641593042,0.6592734,119130.0,119120.0,0.53593423]
[1753641593228,0.5889034,119130.0,119120.0,0.53730423]
[1753641594068,0.6229734,119130.0,119120.0,0.53730423]
[1753641594278,0.6541734,119130.0,119120.0,0.53730423]
[1753641595589,0.6541734,119130.0,119120.0,0.58765423]